[Event "Titled Tuesday Blitz May 24 Early 2022"]
[White "Stepanencu, Nicodim-Cosmin"]
[Black "Olafsson, Helgi"]
[WhiteFideId "1256220"]
[BlackFideId "2300010"]
[WhiteElo "1945"]
[BlackElo "2463"]
[Result "0-1"]
[Round "07"]
[TimeControl "180+1"]
[Date "2022.05.25"]
[WhiteClock "0:00:03"]
[BlackClock "0:00:29"]

1. b3 {[%clk 0:03:00]}  d5 {[%clk 0:02:59]} 2. Bb2 {[%clk 0:02:59]}  c6 {[%clk 0:02:57]} 3. d3 {[%clk 0:02:55]}  Nf6 {[%clk 0:02:56]} 4. Nd2 {[%clk 0:02:56]}  Bf5 {[%clk 0:02:54]} 5. g3 {[%clk 0:02:52]}  e6 {[%clk 0:02:50]} 6. Bg2 {[%clk 0:02:51]}  Bg6 {[%clk 0:02:45]} 7. Ngf3 {[%clk 0:02:51]}  Bd6 {[%clk 0:02:44]} 8. h3 {[%clk 0:02:47]}  Qe7 {[%clk 0:02:44]} 9. O-O {[%clk 0:02:42]}  Ba3 {[%clk 0:02:40]} 10. Bd4 {[%clk 0:02:39]}  Nbd7 {[%clk 0:02:31]} 11. c4 {[%clk 0:02:29]}  e5 {[%clk 0:02:29]} 12. Be3 {[%clk 0:02:18]}  d4 {[%clk 0:02:27]} 13. Bg5 {[%clk 0:02:17]}  h6 {[%clk 0:02:21]} 14. Bh4 {[%clk 0:02:16]}  Bh7 {[%clk 0:02:17]} 15. g4 {[%clk 0:02:14]}  c5 {[%clk 0:02:07]} 16. Ne1 {[%clk 0:02:11]}  g5 {[%clk 0:01:56]} 17. Bg3 {[%clk 0:02:10]}  e4 {[%clk 0:01:55]} 18. Nc2 {[%clk 0:02:04]}  Bb2 {[%clk 0:01:54]} 19. Rb1 {[%clk 0:02:03]}  Bc3 {[%clk 0:01:48]} 20. b4 {[%clk 0:01:55]}  O-O {[%clk 0:01:45]} 21. Nxe4 {[%clk 0:01:08]}  Nxe4 {[%clk 0:01:43]} 22. dxe4 {[%clk 0:01:08]}  Bxe4 {[%clk 0:01:42]} 23. Bxe4 {[%clk 0:01:08]}  Qxe4 {[%clk 0:01:42]} 24. bxc5 {[%clk 0:01:08]}  Nxc5 {[%clk 0:01:41]} 25. Bd6 {[%clk 0:01:06]}  Rfc8 {[%clk 0:01:26]} 26. f4 {[%clk 0:00:42]}  Ne6 {[%clk 0:01:22]} 27. f5 {[%clk 0:00:33]}  Nc5 {[%clk 0:01:08]} 28. Rf3 {[%clk 0:00:32]}  b6 {[%clk 0:01:06]} 29. Nb4 {[%clk 0:00:12]}  Bxb4 {[%clk 0:00:58]} 30. Rxb4 {[%clk 0:00:13]}  Re8 {[%clk 0:00:58]} 31. Rb2 {[%clk 0:00:08]}  Rad8 {[%clk 0:00:55]} 32. Bg3 {[%clk 0:00:02]}  d3 {[%clk 0:00:53]} 33. exd3 {[%clk 0:00:02]}  Nxd3 {[%clk 0:00:51]} 34. Rd2 {[%clk 0:00:02]}  Nb2 {[%clk 0:00:41]} 35. Qc1 {[%clk 0:00:02]}  Rxd2 {[%clk 0:00:29]} 36. Qxd2 {[%clk 0:00:03]}  Qxf3 {[%clk 0:00:29]} 0-1


[Site "https://www.chess.com"]

[Event "Titled Tuesday Blitz May 24 Early 2022"]
[White "Taboas Rodriguez, Daniel"]
[Black "Kuderinov, Kirill"]
[WhiteFideId "2208466"]
[BlackFideId "13701568"]
[WhiteElo "2429"]
[BlackElo "2432"]
[Result "0-1"]
[Round "07"]
[TimeControl "180+1"]
[Date "2022.05.25"]
[WhiteClock "0:00:06"]
[BlackClock "0:00:05"]

1. d4 {[%clk 0:03:00]}  Nf6 {[%clk 0:02:59]} 2. Nf3 {[%clk 0:03:00]}  d5 {[%clk 0:02:59]} 3. c4 {[%clk 0:03:01]}  e6 {[%clk 0:02:59]} 4. Bg5 {[%clk 0:03:01]}  c5 {[%clk 0:02:59]} 5. cxd5 {[%clk 0:03:01]}  exd5 {[%clk 0:02:58]} 6. Nc3 {[%clk 0:03:00]}  cxd4 {[%clk 0:02:58]} 7. Nxd4 {[%clk 0:03:00]}  Nc6 {[%clk 0:02:58]} 8. e3 {[%clk 0:03:00]}  Bc5 {[%clk 0:02:58]} 9. Bb5 {[%clk 0:03:00]}  Bd7 {[%clk 0:02:58]} 10. O-O {[%clk 0:02:53]}  Bxd4 {[%clk 0:02:50]} 11. exd4 {[%clk 0:02:52]}  O-O {[%clk 0:02:50]} 12. Nxd5 {[%clk 0:02:48]}  Be6 {[%clk 0:02:50]} 13. Nxf6+ {[%clk 0:02:45]}  gxf6 {[%clk 0:02:51]} 14. Bh6 {[%clk 0:02:46]}  Re8 {[%clk 0:02:46]} 15. Bxc6 {[%clk 0:02:42]}  bxc6 {[%clk 0:02:46]} 16. Qd2 {[%clk 0:02:36]}  Qd5 {[%clk 0:02:43]} 17. Qe3 {[%clk 0:02:29]}  Bf5 {[%clk 0:02:41]} 18. Qg3+ {[%clk 0:02:27]}  Bg6 {[%clk 0:02:41]} 19. Rad1 {[%clk 0:02:27]}  Re2 {[%clk 0:02:39]} 20. Qf4 {[%clk 0:02:18]}  Qh5 {[%clk 0:02:31]} 21. Rd2 {[%clk 0:02:15]}  Re4 {[%clk 0:02:29]} 22. Qxf6 {[%clk 0:02:00]}  Qxh6 {[%clk 0:02:28]} 23. Qxc6 {[%clk 0:02:01]}  Rae8 {[%clk 0:02:26]} 24. d5 {[%clk 0:02:00]}  Qxd2 {[%clk 0:02:26]} 25. d6 {[%clk 0:02:00]}  Qd1 {[%clk 0:02:23]} 26. Qxe8+ {[%clk 0:01:57]}  Rxe8 {[%clk 0:02:24]} 27. Rxd1 {[%clk 0:01:57]}  f6 {[%clk 0:02:20]} 28. f4 {[%clk 0:01:52]}  Kf7 {[%clk 0:02:19]} 29. g4 {[%clk 0:01:49]}  Bc2 {[%clk 0:02:14]} 30. Rd2 {[%clk 0:01:48]}  Ba4 {[%clk 0:02:12]} 31. f5 {[%clk 0:01:41]}  Bd7 {[%clk 0:02:07]} 32. Kf2 {[%clk 0:01:41]}  h5 {[%clk 0:02:06]} 33. h3 {[%clk 0:01:40]}  hxg4 {[%clk 0:02:06]} 34. hxg4 {[%clk 0:01:41]}  Rc8 {[%clk 0:02:04]} 35. Ke3 {[%clk 0:01:40]}  Rc4 {[%clk 0:02:03]} 36. Rd4 {[%clk 0:01:40]}  Rc2 {[%clk 0:02:00]} 37. Rb4 {[%clk 0:01:37]}  a5 {[%clk 0:01:53]} 38. Rb7 {[%clk 0:01:34]}  Ke8 {[%clk 0:01:53]} 39. Kf4 {[%clk 0:01:25]}  Rd2 {[%clk 0:01:48]} 40. Rb8+ {[%clk 0:01:22]}  Kf7 {[%clk 0:01:48]} 41. Rb6 {[%clk 0:01:23]}  a4 {[%clk 0:01:43]} 42. Ke3 {[%clk 0:01:16]}  Rd5 {[%clk 0:01:38]} 43. Ra6 {[%clk 0:01:13]}  Rb5 {[%clk 0:01:33]} 44. Ra7 {[%clk 0:01:12]}  Ke8 {[%clk 0:01:17]} 45. Ra8+ {[%clk 0:01:12]}  Kf7 {[%clk 0:01:17]} 46. Ra7 {[%clk 0:01:12]}  Ke8 {[%clk 0:01:17]} 47. Ra8+ {[%clk 0:00:51]}  Kf7 {[%clk 0:01:12]} 48. Rd8 {[%clk 0:00:51]}  Rb7 {[%clk 0:00:58]} 49. b3 {[%clk 0:00:44]}  axb3 {[%clk 0:00:55]} 50. axb3 {[%clk 0:00:45]}  Rxb3+ {[%clk 0:00:56]} 51. Kf4 {[%clk 0:00:45]}  Rb7 {[%clk 0:00:54]} 52. g5 {[%clk 0:00:44]}  Rb4+ {[%clk 0:00:53]} 53. Kg3 {[%clk 0:00:43]}  Bxf5 {[%clk 0:00:49]} 54. gxf6 {[%clk 0:00:44]}  Kxf6 {[%clk 0:00:48]} 55. Kf3 {[%clk 0:00:43]}  Be6 {[%clk 0:00:44]} 56. Ke3 {[%clk 0:00:43]}  Ke5 {[%clk 0:00:42]} 57. Kd3 {[%clk 0:00:43]}  Rb3+ {[%clk 0:00:40]} 58. Kc2 {[%clk 0:00:44]}  Rb7 {[%clk 0:00:41]} 59. Kc3 {[%clk 0:00:44]}  Bd7 {[%clk 0:00:41]} 60. Kc4 {[%clk 0:00:39]}  Kxd6 {[%clk 0:00:41]} 61. Kd4 {[%clk 0:00:39]}  Rb4+ {[%clk 0:00:40]} 62. Kc3 {[%clk 0:00:40]}  Rg4 {[%clk 0:00:41]} 63. Kd3 {[%clk 0:00:40]}  Kc7 {[%clk 0:00:40]} 64. Rh8 {[%clk 0:00:39]}  Be6 {[%clk 0:00:38]} 65. Ke3 {[%clk 0:00:40]}  Kd6 {[%clk 0:00:39]} 66. Kf3 {[%clk 0:00:41]}  Rb4 {[%clk 0:00:38]} 67. Re8 {[%clk 0:00:40]}  Ke5 {[%clk 0:00:37]} 68. Ke3 {[%clk 0:00:41]}  Rb3+ {[%clk 0:00:37]} 69. Ke2 {[%clk 0:00:41]}  Kf6 {[%clk 0:00:35]} 70. Kd2 {[%clk 0:00:41]}  Bf5 {[%clk 0:00:35]} 71. Rf8+ {[%clk 0:00:39]}  Kg5 {[%clk 0:00:34]} 72. Re8 {[%clk 0:00:38]}  Kf4 {[%clk 0:00:35]} 73. Re7 {[%clk 0:00:38]}  Rd3+ {[%clk 0:00:35]} 74. Ke2 {[%clk 0:00:38]}  Rd4 {[%clk 0:00:34]} 75. Re8 {[%clk 0:00:37]}  Bg4+ {[%clk 0:00:34]} 76. Ke1 {[%clk 0:00:35]}  Rd1+ {[%clk 0:00:33]} 77. Kf2 {[%clk 0:00:35]}  Rd2+ {[%clk 0:00:34]} 78. Ke1 {[%clk 0:00:35]}  Rb2 {[%clk 0:00:31]} 79. Re7 {[%clk 0:00:34]}  Bf5 {[%clk 0:00:30]} 80. Kd1 {[%clk 0:00:33]}  Be4 {[%clk 0:00:30]} 81. Kc1 {[%clk 0:00:33]}  Rc2+ {[%clk 0:00:30]} 82. Kd1 {[%clk 0:00:33]}  Ra2 {[%clk 0:00:28]} 83. Kc1 {[%clk 0:00:33]}  Ke3 {[%clk 0:00:28]} 84. Re8 {[%clk 0:00:29]}  Kd4 {[%clk 0:00:25]} 85. Rd8+ {[%clk 0:00:27]}  Bd5 {[%clk 0:00:25]} 86. Kd1 {[%clk 0:00:25]}  Kc4 {[%clk 0:00:22]} 87. Ke1 {[%clk 0:00:25]}  Be4 {[%clk 0:00:20]} 88. Rd7 {[%clk 0:00:24]}  Bd5 {[%clk 0:00:18]} 89. Rd8 {[%clk 0:00:24]}  Kd4 {[%clk 0:00:19]} 90. Rd7 {[%clk 0:00:24]}  Ke4 {[%clk 0:00:18]} 91. Kd1 {[%clk 0:00:24]}  Rf2 {[%clk 0:00:16]} 92. Rd8 {[%clk 0:00:23]}  Rf5 {[%clk 0:00:12]} 93. Kd2 {[%clk 0:00:22]}  Rf2+ {[%clk 0:00:12]} 94. Kc3 {[%clk 0:00:23]}  Rf3+ {[%clk 0:00:12]} 95. Kc2 {[%clk 0:00:20]}  Kd4 {[%clk 0:00:12]} 96. Rc8 {[%clk 0:00:17]}  Rf2+ {[%clk 0:00:11]} 97. Kc1 {[%clk 0:00:17]}  Bb3 {[%clk 0:00:10]} 98. Kb1 {[%clk 0:00:13]}  Be6 {[%clk 0:00:09]} 99. Rc6 {[%clk 0:00:11]}  Bd5 {[%clk 0:00:08]} 100. Rc8 {[%clk 0:00:11]}  Bc4 {[%clk 0:00:09]} 101. Rh8 {[%clk 0:00:08]}  Kc3 {[%clk 0:00:08]} 102. Rh3+ {[%clk 0:00:09]}  Bd3+ {[%clk 0:00:07]} 103. Ka1 {[%clk 0:00:09]}  Rd2 {[%clk 0:00:06]} 104. Rg3 {[%clk 0:00:08]}  Re2 {[%clk 0:00:04]} 105. Rh3 {[%clk 0:00:07]}  Rd2 {[%clk 0:00:04]} 106. Rg3 {[%clk 0:00:07]}  Kb3 {[%clk 0:00:05]} 107. Rg1 {[%clk 0:00:06]}  Ra2# {[%clk 0:00:05]} 0-1


[Site "https://www.chess.com"]

[Event "Titled Tuesday Blitz May 24 Early 2022"]
[White "Tarigan, Gilbert Elroy"]
[Black "Vakhlamov, Igor L."]
[WhiteFideId "7108133"]
[BlackFideId "24126748"]
[WhiteElo "1908"]
[BlackElo "2401"]
[Result "1-0"]
[Round "07"]
[TimeControl "180+1"]
[Date "2022.05.24"]
[WhiteClock "0:00:09"]
[BlackClock "0:00:10"]

1. Nf3 {[%clk 0:03:00]}  Nf6 {[%clk 0:02:59]} 2. d4 {[%clk 0:02:56]}  d5 {[%clk 0:02:58]} 3. Bf4 {[%clk 0:02:56]}  Bf5 {[%clk 0:02:57]} 4. e3 {[%clk 0:02:56]}  e6 {[%clk 0:02:58]} 5. Bd3 {[%clk 0:02:56]}  Bxd3 {[%clk 0:02:57]} 6. Qxd3 {[%clk 0:02:54]}  Bd6 {[%clk 0:02:56]} 7. Bg5 {[%clk 0:02:45]}  O-O {[%clk 0:02:55]} 8. Nbd2 {[%clk 0:02:41]}  Nbd7 {[%clk 0:02:51]} 9. O-O {[%clk 0:02:41]}  h6 {[%clk 0:02:47]} 10. Bh4 {[%clk 0:02:41]}  c5 {[%clk 0:02:47]} 11. c3 {[%clk 0:02:41]}  Qc7 {[%clk 0:02:15]} 12. Bxf6 {[%clk 0:02:36]}  Nxf6 {[%clk 0:02:16]} 13. g3 {[%clk 0:02:34]}  Rfd8 {[%clk 0:01:45]} 14. a4 {[%clk 0:02:30]}  a6 {[%clk 0:01:44]} 15. Rfe1 {[%clk 0:02:25]}  e5 {[%clk 0:01:37]} 16. dxe5 {[%clk 0:02:23]}  Bxe5 {[%clk 0:01:38]} 17. Kg2 {[%clk 0:02:15]}  Rac8 {[%clk 0:01:37]} 18. a5 {[%clk 0:02:13]}  Qe7 {[%clk 0:01:34]} 19. Qc2 {[%clk 0:01:55]}  g6 {[%clk 0:01:09]} 20. h4 {[%clk 0:01:51]}  h5 {[%clk 0:01:06]} 21. e4 {[%clk 0:01:48]}  d4 {[%clk 0:01:06]} 22. Nc4 {[%clk 0:01:28]}  Bc7 {[%clk 0:00:58]} 23. e5 {[%clk 0:01:22]}  d3 {[%clk 0:00:51]} 24. Qd2 {[%clk 0:01:09]}  Ne8 {[%clk 0:00:43]} 25. Re3 {[%clk 0:01:00]}  Qe6 {[%clk 0:00:40]} 26. b3 {[%clk 0:00:57]}  Qf5 {[%clk 0:00:31]} 27. Rd1 {[%clk 0:00:55]}  Ng7 {[%clk 0:00:32]} 28. Rxd3 {[%clk 0:00:50]}  Ne6 {[%clk 0:00:32]} 29. Nd6 {[%clk 0:00:29]}  Bxd6 {[%clk 0:00:32]} 30. exd6 {[%clk 0:00:30]}  c4 {[%clk 0:00:32]} 31. Rd5 {[%clk 0:00:29]}  Qg4 {[%clk 0:00:31]} 32. b4 {[%clk 0:00:28]}  Qe4 {[%clk 0:00:24]} 33. Qe3 {[%clk 0:00:14]}  Qc2 {[%clk 0:00:22]} 34. R1d2 {[%clk 0:00:12]}  Qb1 {[%clk 0:00:22]} 35. Rd1 {[%clk 0:00:08]}  Qc2 {[%clk 0:00:21]} 36. R1d2 {[%clk 0:00:05]}  Qb1 {[%clk 0:00:21]} 37. Ng5 {[%clk 0:00:06]}  Nxg5 {[%clk 0:00:19]} 38. hxg5 {[%clk 0:00:07]}  Rd7 {[%clk 0:00:18]} 39. Qf3 {[%clk 0:00:06]}  Rcd8 {[%clk 0:00:19]} 40. Qf6 {[%clk 0:00:05]}  Qe4+ {[%clk 0:00:18]} 41. Qf3 {[%clk 0:00:05]}  Qe6 {[%clk 0:00:17]} 42. Qf4 {[%clk 0:00:05]}  Kg7 {[%clk 0:00:15]} 43. Qxc4 {[%clk 0:00:05]}  Kg8 {[%clk 0:00:14]} 44. Qd4 {[%clk 0:00:05]}  h4 {[%clk 0:00:13]} 45. Qxh4 {[%clk 0:00:04]}  Re8 {[%clk 0:00:13]} 46. Qd4 {[%clk 0:00:04]}  Qe1 {[%clk 0:00:13]} 47. c4 {[%clk 0:00:04]}  Re4 {[%clk 0:00:13]} 48. Qd3 {[%clk 0:00:04]}  Re6 {[%clk 0:00:12]} 49. Rd1 {[%clk 0:00:04]}  Qxb4 {[%clk 0:00:10]} 50. c5 {[%clk 0:00:04]}  Qa4 {[%clk 0:00:10]} 51. Qd4 {[%clk 0:00:04]}  Qc6 {[%clk 0:00:11]} 52. Rh1 {[%clk 0:00:04]}  f6 {[%clk 0:00:10]} 53. gxf6 {[%clk 0:00:05]}  Rf7 {[%clk 0:00:09]} 54. Rd1 {[%clk 0:00:05]}  Re8 {[%clk 0:00:09]} 55. d7 {[%clk 0:00:05]}  Rxd7 {[%clk 0:00:09]} 56. Kg1 {[%clk 0:00:04]}  Rxd5 {[%clk 0:00:08]} 57. Qxd5+ {[%clk 0:00:05]}  Qxd5 {[%clk 0:00:09]} 58. Rxd5 {[%clk 0:00:06]}  Re6 {[%clk 0:00:08]} 59. Rd7 {[%clk 0:00:05]}  Rxf6 {[%clk 0:00:09]} 60. Rxb7 {[%clk 0:00:05]}  Rc6 {[%clk 0:00:10]} 61. Rb6 {[%clk 0:00:06]}  Rxc5 {[%clk 0:00:10]} 62. Rxg6+ {[%clk 0:00:06]}  Kf7 {[%clk 0:00:11]} 63. Rxa6 {[%clk 0:00:07]}  Rc4 {[%clk 0:00:10]} 64. Kg2 {[%clk 0:00:07]}  Rc3 {[%clk 0:00:10]} 65. Ra7+ {[%clk 0:00:08]}  Kg6 {[%clk 0:00:10]} 66. Ra8 {[%clk 0:00:09]}  Ra3 {[%clk 0:00:10]} 67. a6 {[%clk 0:00:09]}  Ra4 {[%clk 0:00:10]} 68. Kf3 {[%clk 0:00:10]}  Ra3+ {[%clk 0:00:10]} 69. Ke4 {[%clk 0:00:10]}  Ra2 {[%clk 0:00:10]} 70. a7 {[%clk 0:00:10]}  Ra4+ {[%clk 0:00:09]} 71. Kd5 {[%clk 0:00:09]}  Rxa7 {[%clk 0:00:10]} 72. Rxa7 {[%clk 0:00:09]} 1-0


[Site "https://www.chess.com"]

[Event "Titled Tuesday Blitz May 24 Early 2022"]
[White "Tristan, Leonardo"]
[Black "Pakleza, Zbigniew"]
[WhiteFideId "113816"]
[BlackFideId "1119290"]
[WhiteElo "2404"]
[BlackElo "2467"]
[Result "1-0"]
[Round "07"]
[TimeControl "180+1"]
[Date "2022.05.24"]
[WhiteClock "0:00:09"]
[BlackClock "0:00:03"]

1. d4 {[%clk 0:03:00]}  d5 {[%clk 0:02:58]} 2. Nf3 {[%clk 0:03:01]}  Nf6 {[%clk 0:02:57]} 3. Bf4 {[%clk 0:03:01]}  c5 {[%clk 0:02:51]} 4. e3 {[%clk 0:03:01]}  Nc6 {[%clk 0:02:49]} 5. Nbd2 {[%clk 0:03:02]}  e6 {[%clk 0:02:40]} 6. c3 {[%clk 0:03:01]}  Bd6 {[%clk 0:02:38]} 7. Bg3 {[%clk 0:03:01]}  O-O {[%clk 0:02:38]} 8. Bb5 {[%clk 0:03:00]}  Bxg3 {[%clk 0:02:17]} 9. hxg3 {[%clk 0:03:00]}  Qb6 {[%clk 0:02:18]} 10. a4 {[%clk 0:02:58]}  a6 {[%clk 0:02:13]} 11. Bxc6 {[%clk 0:02:57]}  Qxc6 {[%clk 0:02:13]} 12. Ne5 {[%clk 0:02:47]}  Qc7 {[%clk 0:02:06]} 13. Qc2 {[%clk 0:02:42]}  g6 {[%clk 0:01:52]} 14. g4 {[%clk 0:02:33]}  Nd7 {[%clk 0:01:45]} 15. Ndf3 {[%clk 0:02:28]}  Nxe5 {[%clk 0:01:42]} 16. dxe5 {[%clk 0:02:27]}  Kg7 {[%clk 0:01:23]} 17. g5 {[%clk 0:02:26]}  Bd7 {[%clk 0:01:18]} 18. Rh4 {[%clk 0:02:13]}  Rh8 {[%clk 0:01:09]} 19. a5 {[%clk 0:01:59]}  b5 {[%clk 0:01:05]} 20. axb6 {[%clk 0:01:56]}  Qxb6 {[%clk 0:01:06]} 21. Nh2 {[%clk 0:01:54]}  h5 {[%clk 0:00:52]} 22. gxh6+ {[%clk 0:01:53]}  Rxh6 {[%clk 0:00:52]} 23. Rxh6 {[%clk 0:01:54]}  Kxh6 {[%clk 0:00:53]} 24. Ng4+ {[%clk 0:01:54]}  Kg7 {[%clk 0:00:54]} 25. Qe2 {[%clk 0:01:51]}  Qd8 {[%clk 0:00:39]} 26. Rxa6 {[%clk 0:01:42]}  Rb8 {[%clk 0:00:25]} 27. Ra7 {[%clk 0:01:39]}  Be8 {[%clk 0:00:18]} 28. Qf3 {[%clk 0:00:40]}  Qh4 {[%clk 0:00:16]} 29. g3 {[%clk 0:00:27]}  Qh5 {[%clk 0:00:13]} 30. Qf6+ {[%clk 0:00:26]}  Kg8 {[%clk 0:00:11]} 31. Qf4 {[%clk 0:00:18]}  Kg7 {[%clk 0:00:09]} 32. b4 {[%clk 0:00:16]}  cxb4 {[%clk 0:00:08]} 33. cxb4 {[%clk 0:00:17]}  Rc8 {[%clk 0:00:09]} 34. Kd2 {[%clk 0:00:18]}  Rc4 {[%clk 0:00:08]} 35. Qf6+ {[%clk 0:00:17]}  Kf8 {[%clk 0:00:07]} 36. Qe7+ {[%clk 0:00:13]}  Kg7 {[%clk 0:00:08]} 37. Qxe8 {[%clk 0:00:12]}  Qf5 {[%clk 0:00:08]} 38. Qg8+ {[%clk 0:00:03]}  Kxg8 {[%clk 0:00:08]} 39. Nh6+ {[%clk 0:00:04]}  Kg7 {[%clk 0:00:09]} 40. Nxf5+ {[%clk 0:00:05]}  gxf5 {[%clk 0:00:10]} 41. Rb7 {[%clk 0:00:05]}  Kg6 {[%clk 0:00:06]} 42. f4 {[%clk 0:00:04]}  f6 {[%clk 0:00:05]} 43. exf6 {[%clk 0:00:03]}  Kxf6 {[%clk 0:00:06]} 44. b5 {[%clk 0:00:04]}  d4 {[%clk 0:00:05]} 45. Rb8 {[%clk 0:00:04]}  dxe3+ {[%clk 0:00:05]} 46. Kxe3 {[%clk 0:00:05]}  Rc3+ {[%clk 0:00:05]} 47. Kf2 {[%clk 0:00:05]}  Rb3 {[%clk 0:00:06]} 48. b6 {[%clk 0:00:05]}  Kg7 {[%clk 0:00:04]} 49. Kg2 {[%clk 0:00:05]}  Kf7 {[%clk 0:00:02]} 50. Kh3 {[%clk 0:00:06]}  Kg7 {[%clk 0:00:03]} 51. Kh4 {[%clk 0:00:06]}  Kg6 {[%clk 0:00:03]} 52. g4 {[%clk 0:00:06]}  fxg4 {[%clk 0:00:03]} 53. Kxg4 {[%clk 0:00:07]}  Kg7 {[%clk 0:00:04]} 54. Kg5 {[%clk 0:00:08]}  Rb5+ {[%clk 0:00:04]} 55. Kg4 {[%clk 0:00:08]}  Kg6 {[%clk 0:00:04]} 56. Kf3 {[%clk 0:00:08]}  Rb4 {[%clk 0:00:04]} 57. Ke3 {[%clk 0:00:09]}  Kg7 {[%clk 0:00:04]} 58. b7 {[%clk 0:00:09]}  Kh7 {[%clk 0:00:03]} 59. Kd3 {[%clk 0:00:09]}  Kg7 {[%clk 0:00:04]} 60. Kc3 {[%clk 0:00:09]}  Rb1 {[%clk 0:00:03]} 61. Kd4 {[%clk 0:00:10]}  Kh7 {[%clk 0:00:03]} 62. Ke5 {[%clk 0:00:10]}  Rb6 {[%clk 0:00:02]} 63. Kf6 {[%clk 0:00:10]}  Rb4 {[%clk 0:00:02]} 64. Kxe6 {[%clk 0:00:10]}  Rxf4 {[%clk 0:00:02]} 65. Rh8+ {[%clk 0:00:09]}  Kxh8 {[%clk 0:00:03]} 66. b8=Q+ {[%clk 0:00:09]}  Rf8 {[%clk 0:00:03]} 67. Qxf8+ {[%clk 0:00:09]} 1-0


[Site "https://www.chess.com"]

[Event "Titled Tuesday Blitz May 24 Early 2022"]
[White "Tuleyeva-Aketayeva, Dana"]
[Black "Li, Hui"]
[WhiteFideId "13701932"]
[BlackFideId "15400310"]
[WhiteElo "1875"]
[BlackElo "1954"]
[Result "0-1"]
[Round "07"]
[TimeControl "180+1"]
[Date "2022.05.25"]
[WhiteClock "0:00:04"]
[BlackClock "0:00:05"]

1. d4 {[%clk 0:03:00]}  Nf6 {[%clk 0:02:54]} 2. Nf3 {[%clk 0:03:00]}  d5 {[%clk 0:02:52]} 3. g3 {[%clk 0:03:00]}  e6 {[%clk 0:02:50]} 4. Bg2 {[%clk 0:03:01]}  Be7 {[%clk 0:02:51]} 5. O-O {[%clk 0:03:01]}  O-O {[%clk 0:02:50]} 6. c4 {[%clk 0:03:02]}  dxc4 {[%clk 0:02:51]} 7. Ne5 {[%clk 0:03:02]}  Nc6 {[%clk 0:02:51]} 8. Nxc6 {[%clk 0:02:59]}  bxc6 {[%clk 0:02:52]} 9. Bxc6 {[%clk 0:03:00]}  Rb8 {[%clk 0:02:52]} 10. Bg2 {[%clk 0:03:00]}  Bb7 {[%clk 0:02:48]} 11. Nc3 {[%clk 0:02:44]}  Bxg2 {[%clk 0:02:41]} 12. Kxg2 {[%clk 0:02:45]}  c5 {[%clk 0:02:36]} 13. Be3 {[%clk 0:02:24]}  Nd5 {[%clk 0:02:29]} 14. Qd2 {[%clk 0:01:57]}  cxd4 {[%clk 0:01:33]} 15. Bxd4 {[%clk 0:01:47]}  Bf6 {[%clk 0:01:17]} 16. Bxf6 {[%clk 0:01:19]}  Qxf6 {[%clk 0:01:10]} 17. Nxd5 {[%clk 0:01:17]}  exd5 {[%clk 0:01:09]} 18. Qxd5 {[%clk 0:01:17]}  Qxb2 {[%clk 0:00:58]} 19. Qxc4 {[%clk 0:01:13]}  Rbc8 {[%clk 0:00:54]} 20. Qa6 {[%clk 0:01:11]}  Qb6 {[%clk 0:00:42]} 21. Qxb6 {[%clk 0:01:11]}  axb6 {[%clk 0:00:43]} 22. Rfc1 {[%clk 0:01:09]}  g6 {[%clk 0:00:39]} 23. e3 {[%clk 0:01:04]}  Rfd8 {[%clk 0:00:39]} 24. Rxc8 {[%clk 0:01:03]}  Rxc8 {[%clk 0:00:38]} 25. Rb1 {[%clk 0:01:03]}  Rc6 {[%clk 0:00:38]} 26. Rb4 {[%clk 0:01:01]}  Kf8 {[%clk 0:00:38]} 27. Re4 {[%clk 0:00:56]}  Rc2 {[%clk 0:00:36]} 28. a4 {[%clk 0:00:55]}  Rb2 {[%clk 0:00:34]} 29. h4 {[%clk 0:00:51]}  Kg7 {[%clk 0:00:33]} 30. Rc4 {[%clk 0:00:49]}  h5 {[%clk 0:00:28]} 31. Rc6 {[%clk 0:00:46]}  Rb4 {[%clk 0:00:26]} 32. Rd6 {[%clk 0:00:45]}  Kf8 {[%clk 0:00:26]} 33. Rd4 {[%clk 0:00:41]}  Rb2 {[%clk 0:00:26]} 34. Re4 {[%clk 0:00:40]}  Kg7 {[%clk 0:00:25]} 35. Re5 {[%clk 0:00:40]}  Rb4 {[%clk 0:00:23]} 36. a5 {[%clk 0:00:28]}  bxa5 {[%clk 0:00:21]} 37. Rxa5 {[%clk 0:00:29]}  Rb2 {[%clk 0:00:21]} 38. Ra4 {[%clk 0:00:27]}  Kg8 {[%clk 0:00:21]} 39. Rf4 {[%clk 0:00:27]}  Kg7 {[%clk 0:00:21]} 40. Kf3 {[%clk 0:00:28]}  Rb1 {[%clk 0:00:21]} 41. Ke4 {[%clk 0:00:28]}  Rb2 {[%clk 0:00:21]} 42. Kd3 {[%clk 0:00:25]}  Rb3+ {[%clk 0:00:20]} 43. Ke2 {[%clk 0:00:25]}  Rb2+ {[%clk 0:00:20]} 44. Kd3 {[%clk 0:00:25]}  Rb1 {[%clk 0:00:21]} 45. e4 {[%clk 0:00:25]}  Rb3+ {[%clk 0:00:20]} 46. Kd4 {[%clk 0:00:24]}  Rb4+ {[%clk 0:00:20]} 47. Ke3 {[%clk 0:00:24]}  Rb3+ {[%clk 0:00:20]} 48. Ke2 {[%clk 0:00:24]}  Rb2+ {[%clk 0:00:21]} 49. Kd3 {[%clk 0:00:24]}  Rb3+ {[%clk 0:00:21]} 50. Kc4 {[%clk 0:00:25]}  Ra3 {[%clk 0:00:21]} 51. Kd5 {[%clk 0:00:20]}  Ra5+ {[%clk 0:00:21]} 52. Kd4 {[%clk 0:00:20]}  Ra4+ {[%clk 0:00:21]} 53. Ke3 {[%clk 0:00:20]}  Ra3+ {[%clk 0:00:20]} 54. Ke2 {[%clk 0:00:20]}  Ra6 {[%clk 0:00:20]} 55. Rf3 {[%clk 0:00:19]}  Ra2+ {[%clk 0:00:19]} 56. Ke3 {[%clk 0:00:18]}  Ra3+ {[%clk 0:00:19]} 57. Kf4 {[%clk 0:00:18]}  Ra4 {[%clk 0:00:19]} 58. Rd3 {[%clk 0:00:18]}  Ra2 {[%clk 0:00:18]} 59. f3 {[%clk 0:00:17]}  Ra6 {[%clk 0:00:18]} 60. Rd5 {[%clk 0:00:16]}  Ra4 {[%clk 0:00:17]} 61. g4 {[%clk 0:00:16]}  hxg4 {[%clk 0:00:16]} 62. Kxg4 {[%clk 0:00:15]}  Ra1 {[%clk 0:00:16]} 63. Kf4 {[%clk 0:00:14]}  Rh1 {[%clk 0:00:15]} 64. Kg3 {[%clk 0:00:14]}  Rg1+ {[%clk 0:00:15]} 65. Kh2 {[%clk 0:00:14]}  Ra1 {[%clk 0:00:14]} 66. h5 {[%clk 0:00:14]}  Ra2+ {[%clk 0:00:13]} 67. Kg3 {[%clk 0:00:14]}  Ra1 {[%clk 0:00:11]} 68. hxg6 {[%clk 0:00:14]}  Kxg6 {[%clk 0:00:12]} 69. Rf5 {[%clk 0:00:14]}  f6 {[%clk 0:00:11]} 70. Kf4 {[%clk 0:00:13]}  Rh1 {[%clk 0:00:10]} 71. Rd5 {[%clk 0:00:12]}  Ra1 {[%clk 0:00:10]} 72. Rc5 {[%clk 0:00:11]}  Ra2 {[%clk 0:00:10]} 73. Kg3 {[%clk 0:00:11]}  Ra3 {[%clk 0:00:10]} 74. Rc6 {[%clk 0:00:11]}  Kg7 {[%clk 0:00:09]} 75. Rc7+ {[%clk 0:00:11]}  Kg6 {[%clk 0:00:09]} 76. Kg4 {[%clk 0:00:11]}  Ra1 {[%clk 0:00:07]} 77. Rc8 {[%clk 0:00:11]}  Kg7 {[%clk 0:00:06]} 78. Rc5 {[%clk 0:00:09]}  Kg6 {[%clk 0:00:06]} 79. Kf4 {[%clk 0:00:09]}  Ra4 {[%clk 0:00:04]} 80. Rc8 {[%clk 0:00:09]}  Ra5 {[%clk 0:00:04]} 81. Rg8+ {[%clk 0:00:08]}  Kf7 {[%clk 0:00:04]} 82. Rg2 {[%clk 0:00:08]}  Rb5 {[%clk 0:00:04]} 83. Rh2 {[%clk 0:00:08]}  Ra5 {[%clk 0:00:04]} 84. Rh5 {[%clk 0:00:08]}  Rxh5 {[%clk 0:00:03]} 85. Kg4 {[%clk 0:00:06]}  Ra5 {[%clk 0:00:04]} 86. Kf4 {[%clk 0:00:06]}  Ra1 {[%clk 0:00:05]} 87. Kg4 {[%clk 0:00:06]}  Kg6 {[%clk 0:00:05]} 88. Kf4 {[%clk 0:00:06]}  f5 {[%clk 0:00:04]} 89. e5 {[%clk 0:00:04]}  Ra4+ {[%clk 0:00:04]} 90. Ke3 {[%clk 0:00:04]}  f4+ {[%clk 0:00:04]} 91. Kd3 {[%clk 0:00:04]}  Kf5 {[%clk 0:00:05]} 0-1


[Site "https://www.chess.com"]